[Event "FRA-ch Teams Top 16-Bas 2022"]
[Site "Chartres"]
[Date "2022.06.19"]
[Round "11.6"]
[White "Mekhane, Adam"]
[Black "Monpeurt, Cyrielle"]
[Result "1/2-1/2"]
[ECO "C77"]
[WhiteElo "2276"]
[BlackElo "2172"]
[Annotator "TA"]
[PlyCount "170"]
[EventDate "2022.06.16"]
[EventType "team-tourn"]
[EventCountry "FRA"]
[SourceTitle "playchess.com"]
[Source "ChessBase"]
[SourceQuality "1"]
[TimeControl "40/5400+30:1800+30"]

{[%evp 16,170,12,18,14,9,16,12,11,21,15,-4,-3,-4,0,0,0,0,16,18,28,20,19,16,16,16,16,16,83,82,82,82,82,79,116,108,101,101,110,116,128,115,101,107,224,215,377,376,376,375,359,225,216,223,222,211,290,220,228,36,31,0,0,0,0,0,0,0,0,-29975,-29976,-29974,-29975,-29975,-29937,-12849,-12850,-29942,-29942,-7276,-835,-1159,-1042,-6610,-6428,-5186,-5193,-5186,-5186,-5186,-5186,-2078,-183,-183,-183,-183,-183,-183,-183,-183,-183,-183,-183,-183,-183,-183,-183,-183,-183,-183,-183,-29965,-29969,-29967,-29969,-29969,-29971,-29984,-29972,-29972,-29972,-29973,-29971,-29963,-29967,-29964,-29969,-29969,-183,-29967,-47,-47,-47,-47,-47,-47,-47,-47,-47,-47,-47,-47,-47,-47,-47,-47,-8,-8,-7,-8,-8,-8,-8,-47,-47,-47,-47]} 1. e4 {[%emt 0:00:02]} e5 {[%emt 0:00:05]} 2. Nf3 {[%emt 0:00:07]} Nc6 {[%emt 0:00:08]} 3. Bb5 {[%emt 0:00:06]} a6 {[%emt 0:00:11]} 4. Ba4 {[%emt 0:00:15]} Nf6 {[%emt 0:00:13]} 5. O-O {[%emt 0:00:10]} b5 {[%emt 0:00:14]} 6. Bb3 {[%emt 0:00:09]} Be7 {[%emt 0:00:08]} 7. d3 {[%emt 0:00:54]} O-O {[%emt 0:01:04]} 8. Nc3 {[%emt 0:00:35]} d6 {[%emt 0:00:21]} 9. a3 {[%emt 0:00:07]} Be6 {[%emt 0:03:10] 9...Rb8 is setting a new trend. C77: Ruy Lopez: 3...a6 4 Ba4 Nf6, unusual lines.} 10. Nd5 {[%emt 0:02:27]} Nd4 {[%emt 0:04:26]} 11. Nxd4 {[%emt 0:01:47]} exd4 {[%emt 0:00:34] The position is equal.} 12. Nxf6+ {[%emt 0:13:29]} Bxf6 {[%emt 0:00:25] [#]} 13. Bd5 $146 {[%emt 0:01:42]} ({Predecessor:} 13. Bxe6 fxe6 14. a4 c5 15. Qg4 Qd7 16. b3 c4 17. h4 cxd3 18. cxd3 b4 19. Bd2 {½-½ (54) Kramnik,V (2811)-Shirov,A (2664) Sochi 2017}) 13... Bxd5 {[%emt 0:08:34]} 14. exd5 {[%emt 0:00:01]} Re8 {[%emt 0:00:06]} 15. Bd2 {[%emt 0:04:46]} Qd7 {[%emt 0:05:12]} 16. Qf3 {[%emt 0:01:13] Prevents Qf5.} Re7 {[%emt 0:08:14]} 17. Rfe1 {[%emt 0:01:07]} Rae8 {[%emt 0:01:49]} 18. Kf1 {[%emt 0:03:23][%cal Bg1f1,Bf1e1,Be1d1][%mdl 32]} Re5 {[%emt 0:09:47]} 19. Bf4 {[%emt 0:09:18]} Rxe1+ {[%emt 0:03:57]} 20. Rxe1 {[%emt 0:00:18]} Rxe1+ {[%emt 0:00:03]} 21. Kxe1 $11 {[%emt 0:00:06][%mdl 4096] Endgame KQB-KQB} b4 {[%emt 0:00:03]} (21... g6 $11) 22. axb4 $16 {[%emt 0:13:08]} Qa4 {[%emt 0:00:52][%csl LRb4,LRc2]} 23. b3 {[%emt 0:01:50]} Qxb4+ {[%emt 0:01:11]} 24. Bd2 {[%emt 0:00:09]} Qc5 {[%emt 0:05:41]} 25. Qf5 {[%emt 0:02:20] Threatening mate with Qc8+.} h6 {[%emt 0:05:19]} 26. Kd1 $40 {[%emt 0:00:11][%mdl 128] Black is in trouble.} Be5 {[%emt 0:08:28]} 27. f4 {[%emt 0:06:28]} Bf6 {[%emt 0:00:05]} 28. g3 {[%emt 0:01:33]} Qb5 {[%emt 0:05:31]} 29. h4 {[%emt 0:01:27][%cal Bh2h4,Bh4h5][%mdl 32]} a5 {[%emt 0:03:27]} (29... Qe8 $16 {might work better.}) 30. h5 $18 {[%emt 0:02:51]} c5 $2 {[%emt 0:07:33]} (30... Qb8 31. g4 (31. Bxa5 Qa8 $16) 31... Be7) 31. Qc8+ {[%emt 0:04:50]} Kh7 {[%emt 0:00:04]} 32. Qc7 {[%emt 0:00:57] Prevents Be7.} a4 {[%emt 0:00:09]} 33. bxa4 {[%emt 0:02:18]} ({Weaker is} 33. Qxf7 axb3 34. Qg6+ Kg8 35. cxb3 Qxb3+ 36. Kc1 Qa4 $11) 33... Qxa4 {[%emt 0:00:05]} 34. Qxd6 {[%emt 0:01:40]} ({Resist} 34. Qxf7 $6 c4 35. Qg6+ Kh8 $16) 34... c4 {[%emt 0:00:15]} 35. Qb4 $1 {[%emt 0:02:15]} Qa1+ {[%emt 0:00:07]} 36. Bc1 {[%emt 0:00:21]} cxd3 {[%emt 0:00:26]} 37. cxd3 {[%emt 0:00:03]} (37. Qa3 $1 $18 {[%cal Ra3a1]} Qxa3 38. Bxa3) 37... Qa2 $14 {[%emt 0:00:38]} 38. d6 {[%emt 0:03:39]} (38. Qb7 $5 {[%cal Rb7f7]} Qa4+ 39. Ke2 $16) 38... Qg2 {[%emt 0:00:34]} 39. Qc5 {[%emt 0:12:53] Strongly threatening Qf5+.} Qxg3 {[%emt 0:00:07]} 40. Qf5+ {[%emt 0:00:24]} Kg8 {[%emt 0:01:13]} 41. Qc8+ {[%emt 0:36:06]} Kh7 {[%emt 0:30:10]} 42. d7 $2 {[%emt 0:00:00][%mdl 8192]} (42. Qc4 $11) 42... Qxd3+ {[%emt 0:00:00]} 43. Bd2 {[%emt 0:00:00]} Qf1+ {[%emt 0:00:00]} 44. Be1 {[%emt 0:00:00]} Qf3+ {[%emt 0:00:00]} 45. Kc1 {[%emt 0:00:00]} Qxf4+ {[%emt 0:00:00]} 46. Kb2 {[%emt 0:00:00]} d3+ {[%emt 0:03:28]} 47. Kb3 {[%emt 0:00:00]} Qd4 {[%emt 0:03:26]} (47... Qf3 $142 48. d8=R Bxd8) 48. Bc3 {[%emt 0:00:00]} Qd5+ {[%emt 0:02:14]} 49. Qc4 {[%emt 0:01:10]} Qxd7 {[%emt 0:00:12]} 50. Qe4+ {[%emt 0:00:08]} Kg8 {[%emt 0:00:49]} 51. Qa8+ {[%emt 0:00:28]} Qd8 {[%emt 0:00:59]} 52. Qxd8+ {[%emt 0:00:18]} Bxd8 $19 {[%emt 0:00:07] KB-KB} 53. Kc4 {[%emt 0:00:04]} f5 $2 {[%emt 0:05:43]} (53... g5 54. hxg6 fxg6 55. Kxd3 Kf7) 54. Kxd3 {[%emt 0:00:44]} Kf7 {[%emt 0:00:08]} 55. Ke3 {[%emt 0:00:25]} Bf6 {[%emt 0:00:45]} 56. Ba5 {[%emt 0:00:10]} Be5 {[%emt 0:00:30]} 57. Kf3 {[%emt 0:00:13]} g6 {[%emt 0:03:34]} 58. hxg6+ {[%emt 0:00:21]} Kxg6 {[%emt 0:00:03]} 59. Bb6 {[%emt 0:01:34]} h5 {[%emt 0:00:46][%cal Bh6h5,Bh5h4,Bh4h3][%mdl 32]} 60. Bf2 {[%emt 0:02:15]} Bf6 {[%emt 0:00:21]} 61. Kg3 {[%emt 0:01:28]} Kf7 {[%emt 0:01:34]} 62. Kf4 {[%emt 0:02:06]} Ke6 $1 {[%emt 0:00:04]} 63. Be1 $2 {[%emt 0:00:33]} (63. Bb6 $19) 63... h4 {[%emt 0:00:31]} 64. Kf3 {[%emt 0:00:03] [#]} h3 $1 {[%emt 0:00:47]} 65. Bd2 {[%emt 0:00:43]} Be5 {[%emt 0:00:45]} 66. Bc1 {[%emt 0:00:38]} Kd5 {[%emt 0:00:28]} 67. Bh6 {[%emt 0:00:41]} Kc4 {[%emt 0:00:50]} 68. Bg5 {[%emt 0:01:09]} Kd3 {[%emt 0:00:05]} 69. Bh6 {[%emt 0:00:21]} Kc2 {[%emt 0:01:41]} 70. Bg5 {[%emt 0:00:13]} Kd1 {[%emt 0:00:06]} 71. Kf2 {[%emt 0:00:06]} Bc3 $2 {[%emt 0:03:00]} (71... Bc7 72. Be3 Kc2 73. Kf3 Kd3 74. Bg5 Bd6 75. Kf2 Ke4 76. Bh6 Bh2 77. Bf8 Bf4 78. Be7 Be5 79. Bg5 Bd6 80. Bh6 Bf4 81. Bf8 Be3+ 82. Kg3 f4+ 83. Kxh3 Kd3 84. Kg4 Ke2 85. Bb4 f3 86. Be1 Bf2 87. Bc3 Bc5 88. Be1 Be3 89. Bh4 Bf2 90. Bd8 Be3 91. Bh4 Bf2 92. Bf6 Be1 93. Bd4 Bd2 94. Kf5 Be3 95. Bh8 f2 96. Bf6 f1=Q+ 97. Ke6 Qh3+ 98. Kd6 Qh6 99. Ke7 Qh7+ 100. Ke8 Kf3 101. Be7 Ke4 102. Kf8 Kd5 103. Bf6 Ke6 104. Bg7 Bc5+ 105. Ke8 Qxg7 106. Kd8 Qd7#) 72. Bf4 $2 {[%emt 0:01:18] [#]} (72. Kg3 $19) 72... Bd2 $2 {[%emt 0:01:16]} (72... Be1+ $1 {mates} 73. Kg1 Ke2 74. Bd6 Kf3 75. Kh2 Kg4 76. Bc7 Bd2 77. Kg1 Bf4 78. Bb6 Bg3 79. Be3 Bh4 80. Bd2 Bg5 81. Ba5 Be3+ 82. Kh2 f4 83. Be1 f3 84. Kh1 Bg5 85. Bf2 Bh4 86. Bg1 Bg3 87. Be3 Kf5 88. Bd4 Ke4 89. Bb6 Bf4 90. Bf2 Kd3 91. Be1 Bd2 92. Bg3 Ke2 93. Kh2 Be1 94. Kxh3 Bxg3 95. Kxg3 Ke3 96. Kg4 f2 97. Kf5 f1=Q+ 98. Ke5 Qb5+ 99. Kd6 Ke4 100. Ke6 Qe5+ 101. Kf7 Kf5 102. Kg8 Kf6 103. Kh8 Kf7+ 104. Kh7 Qh5#) 73. Bc7 $15 {[%emt 0:00:23]} Be1+ {[%emt 0:00:23]} 74. Kg1 {[%emt 0:01:11]} Ke2 {[%emt 0:00:10]} 75. Kh2 {[%emt 0:00:05]} Kf3 {[%emt 0:00:19]} 76. Kxh3 {[%emt 0:00:02]} Bd2 {[%emt 0:00:11]} 77. Bd6 {[%emt 0:00:50]} Bf4 {[%emt 0:00:11]} 78. Ba3 {[%emt 0:00:14]} Be5 {[%emt 0:01:07]} 79. Bc1 {[%emt 0:00:26]} Bd4 {[%emt 0:00:18]} 80. Bh6 {[%emt 0:00:29]} Ke2 {[%emt 0:00:37] ( -> ...Be3)} 81. Kg3 {[%emt 0:00:59]} Be3 {[%emt 0:00:30]} 82. Bf4 {[%emt 0:00:04]} Bf2+ {[%emt 0:00:29]} 83. Kg2 {[%emt 0:00:11]} Be1 {[%emt 0:00:29]} 84. Bc7 {[%emt 0:00:22]} Ke3 {[%emt 0:00:23]} 85. Kf1 {[%emt 0:00:12]} Bd2 {[%emt 0:00:48] What a bad dream for Black.  Weighted Error Value: White=0.59/Black=0.32} 1/2-1/2

[Event "FRA-ch Teams Top 16-Bas 2022"]
[Site "Chartres"]
[Date "2022.06.19"]
[Round "11.7"]
[White "Bitbol-Delaveyne, Maelan"]
[Black "Shirazi, Kamran"]
[Result "1-0"]
[ECO "A30"]
[WhiteElo "2106"]
[BlackElo "2313"]
[Annotator "TA"]
[PlyCount "77"]
[EventDate "2022.06.16"]
[EventType "team-tourn"]
[EventCountry "FRA"]
[SourceTitle "playchess.com"]
[Source "ChessBase"]
[SourceQuality "1"]
[TimeControl "40/5400+30:1800+30"]

{[%evp 9,77,21,18,20,84,50,54,44,54,0,7,0,0,-12,2,-8,59,53,60,60,59,25,51,43,77,77,102,92,99,95,95,54,145,138,142,133,124,87,156,156,341,228,230,216,233,234,193,223,304,274,360,362,477,460,456,392,816,807,898,878,951,933,916,891,2089,2076,3324,2528,1629,1504]} 1. Nf3 {[%emt 0:00:06]} Nf6 {[%emt 0:15:26]} 2. g3 {[%emt 0:00:07]} b6 {[%emt 0:00:35]} 3. Bg2 {[%emt 0:00:09]} Bb7 {[%emt 0:00:02]} 4. O-O {[%emt 0:00:26]} c5 {[%emt 0:00:18]} 5. c4 {[%emt 0:00:36]} g6 {[%emt 0:00:36]} 6. Nc3 {[%emt 0:01:44] A30: Symmetrical English: Double Fianchetto and Hedgehog.} Qc8 {[%emt 0:00:42] [#]} (6... Bg7 $11 {remains equal.}) 7. Re1 $146 {[%emt 0:09:35]} ({Predecessor:} 7. b3 Bg7 8. Bb2 O-O 9. d4 cxd4 10. Qxd4 Nc6 11. Qd2 d6 12. e4 Rd8 13. Rfe1 {½-½ (27) Kozma,J-Mititelu,G Bucharest 1962}) 7... Bg7 {[%emt 0:06:04]} 8. e4 {[%emt 0:05:35] White is slightly better.} Nc6 {[%emt 0:00:39]} 9. d3 {[%emt 0:04:58]} (9. d4 $14) 9... d6 $11 {[%emt 0:00:23]} 10. h3 {[%emt 0:03:32]} O-O {[%emt 0:01:18]} 11. Be3 {[%emt 0:03:31]} e6 {[%emt 0:00:52]} 12. Rc1 {[%emt 0:11:08]} a6 {[%emt 0:13:03]} (12... Ne8 $11) 13. d4 $14 {[%emt 0:11:20]} e5 {[%emt 0:02:23]} 14. dxe5 {[%emt 0:04:04]} dxe5 {[%emt 0:00:13]} 15. Bg5 {[%emt 0:16:46]} Nd7 {[%emt 0:01:37]} 16. Nd5 {[%emt 0:01:56]} f6 {[%emt 0:02:58]} 17. Be3 {[%emt 0:00:14]} Rf7 {[%emt 0:00:13]} 18. h4 {[%emt 0:03:47]} Qd8 {[%emt 0:00:11]} 19. Bh3 {[%emt 0:02:49]} Nf8 {[%emt 0:03:27] Prevents Be6.} 20. Qb3 {[%emt 0:03:35]} Bc8 {[%emt 0:33:13]} (20... Rb8 $1 $14) 21. Bxc8 $16 {[%emt 0:01:02]} ({Don't do} 21. Qxb6 Bxh3 22. Qxc6 Ne6 $16) (21. Nxb6 $2 Rb8 22. Nxc8 (22. Bxc8 $2 Rxb6 23. Qc3 Qxc8 $19) 22... Rxb3 23. axb3 f5 $19) 21... Rxc8 {[%emt 0:00:14]} 22. Qxb6 {[%emt 0:02:41]} ({Stronger than} 22. Nxb6 Na5 23. Rcd1 Nxb3 $15) 22... Qe8 {[%emt 0:00:11]} 23. Qxa6 {[%emt 0:05:37] aiming for Qa3. White is much more active.} (23. Bxc5 $2 Nd7 24. Qxa6 (24. Nc7 Rxc7 25. Qxc7 Nxc5 $17) 24... Nxc5 $17) 23... Ra7 {[%emt 0:11:55]} (23... Ne6 $142) 24. Qb5 {[%emt 0:00:21]} Rb8 $2 {[%emt 0:00:38] This costs Black the game.} (24... Ra5 $16 {keeps fighting.}) 25. Qxc5 {[%emt 0:01:05][%cal Oa2a4] Threatens to win with a4!} Ne6 {[%emt 0:01:16]} 26. Qd6 {[%emt 0:04:06]} Rd8 {[%emt 0:00:06] [#]} 27. Qxc6 {[%emt 0:01:46][%mdl 512]} Qxc6 {[%emt 0:00:05]} 28. Bxa7 {[%emt 0:00:07] And now Ne7+ would win.} Kf7 {[%emt 0:03:31] Prevents Ne7.} 29. Be3 {[%emt 0:00:51]} Bf8 {[%emt 0:00:19]} 30. b4 {[%emt 0:00:42][%cal Bb2b4,Bb4c5,Bc5c6,Bc6c7][%mdl 32]} Qa4 {[%emt 0:00:10]} 31. c5 {[%emt 0:00:59]} Rb8 {[%emt 0:01:19]} 32. Re2 {[%emt 0:00:35]} Nxc5 $2 {[%emt 0:01:42] [#]} (32... Rxb4 33. Nxb4 Qxb4) 33. Bxc5 $18 {[%emt 0:00:37] White is clearly winning.} Bxc5 {[%emt 0:00:01]} 34. bxc5 {[%emt 0:00:20]} Qa3 {[%emt 0:00:18]} 35. Rc3 {[%emt 0:00:23]} Qa6 {[%emt 0:00:26]} 36. Re1 {[%emt 0:00:40]} Qxa2 {[%emt 0:00:55]} 37. c6 {[%emt 0:00:18]} Qb2 {[%emt 0:00:38]} 38. c7 {[%emt 0:00:19]} Rc8 {[%emt 0:00:02]} 39. Rc6 {[%emt 0:00:31] Weighted Error Value: White=0.15 (very precise) /Black=0.38} 1-0

[Event "FRA-ch Teams Top 16-Bas 2022"]
[Site "Chartres"]
[Date "2022.06.19"]
[Round "11.8"]
[White "Aflalo, Sophie"]
[Black "Le Hay, Thierry"]
[Result "1-0"]
[ECO "C00"]
[WhiteElo "2152"]
[BlackElo "2031"]
[Annotator "TA"]
[PlyCount "67"]
[EventDate "2022.06.16"]
[EventType "team-tourn"]
[EventCountry "FRA"]
[SourceTitle "playchess.com"]
[Source "ChessBase"]
[SourceQuality "1"]
[TimeControl "40/5400+30:1800+30"]

{[%evp 9,67,0,2,-2,0,1,0,0,6,-19,-8,-15,-10,-56,-36,-40,-40,-43,-32,-33,-46,-33,-29,-53,-28,-68,-12,-18,-16,-33,16,10,9,-8,-12,0,0,0,-10,-33,0,0,15,11,7,0,0,0,97,77,106,130,180,172,165,168,322,295,529,516]} 1. e4 {[%emt 0:00:28]} e6 {[%emt 0:00:18]} 2. d3 {[%emt 0:00:07]} c5 {[%emt 0:00:11]} 3. Be2 {[%emt 0:00:12]} Nc6 {[%emt 0:00:16]} 4. f4 {[%emt 0:00:19]} d6 {[%emt 0:05:38]} 5. c3 {[%emt 0:01:03]} g6 {[%emt 0:04:42]} 6. Nf3 {[%emt 0:00:56] C00: French: Unusual White 2nd moves.} Bg7 {[%emt 0:00:07]} 7. O-O {[%emt 0:00:09]} Nge7 {[%emt 0:00:26]} 8. Qe1 {[%emt 0:00:32] The position is equal.} O-O {[%emt 0:14:41]} 9. Nbd2 {[%emt 0:01:22]} b5 {[%emt 0:03:15] [#]} 10. a3 $146 {[%emt 0:03:52][%cal Oe4e5]} (10. e5 {keeps more tension.} b4 11. Ne4 dxe5 12. fxe5 Nxe5 13. Nxe5 Bxe5 14. Bh6) ({Predecessor:} 10. Qf2 b4 11. d4 bxc3 12. bxc3 cxd4 13. cxd4 Qb6 14. Nc4 Bxd4 15. Nxd4 Qxd4 16. Be3 Qxe4 17. Nxd6 {½-½ (74) Khalafova,N (2279)-Beydullayeva,G (2237) Playchess.com INT 2020}) 10... a5 11. Ng5 {[%emt 1:27:00]} (11. Qh4 $11) 11... f6 {[%emt 1:06:26]} 12. Nh3 {[%emt 0:00:30]} Bd7 {[%emt 0:00:30]} 13. Nf3 {[%emt 0:00:30]} b4 {[%emt 0:00:30]} 14. Be3 {[%emt 0:00:30]} bxc3 {[%emt 0:00:00]} 15. bxc3 {[%emt 0:00:30]} f5 {[%emt 0:00:00]} 16. Kh1 {[%emt 0:00:00]} Rb8 {[%emt 0:01:30]} 17. Bg1 {[%emt 0:00:00][%cal Oe4e5]} Rb2 {[%emt 0:00:00]} ({Black should play} 17... h6 $15) 18. e5 $11 {[%emt 0:01:30]} dxe5 {[%emt 0:00:00]} 19. Bxc5 {[%emt 0:00:30]} exf4 {[%emt 0:00:00]} (19... Re8 $1 $15 {deserves consideration.}) 20. d4 {[%emt 0:00:00] aiming for Bc4.} Re8 $1 {[%emt 0:00:00]} 21. Bc4 $132 {[%emt 0:00:00][%mdl 2048] White is not keeping still} Nd5 {[%emt 0:00:00] [#] And now ...Ne3 would win.} 22. Qc1 {[%emt 0:00:00][%csl LRb2,LRf4]} Qb8 {[%emt 0:00:00] White must now prevent ...Ne3.} 23. Bxd5 {[%emt 0:00:00]} exd5 {[%emt 0:00:00]} 24. Qxf4 {[%emt 0:00:00]} (24. Bd6 $5 {[%cal Rd6b8]} Qb5 25. Nxf4 $11) 24... Ree2 {[%emt 0:00:00]} 25. Qxb8+ {[%emt 0:00:00]} Nxb8 {[%emt 0:00:00]} 26. Nf4 {[%emt 0:00:00][%csl LRd5,LRe2][%cal Bh3f4,Bf4d5,Bd5e7][%mdl 32]} Rec2 {[%emt 0:00:00]} 27. Nxd5 {[%emt 0:00:00]} Rxg2 {[%emt 0:00:00]} 28. Rab1 {[%emt 0:00:00]} Bh6 {[%emt 0:01:12]} (28... Bb5 $11 {remains equal.} 29. Rfe1 Nd7) 29. Bd6 {[%emt 0:00:00]} Bc6 {[%emt 0:02:59]} 30. Ne7+ {[%emt 0:00:00] Pair of Knights!} Kf7 {[%emt 0:00:46]} (30... Kg7 $16) 31. d5 $18 {[%emt 0:00:00]} ({And not} 31. Ne5+ Ke6 32. Rxb2 (32. N5xc6 $2 Kxd6 33. Rxb2 Rxb2 $19) (32. Bxb8 $2 Rxh2+ 33. Kg1 Rh1#) 32... Rxb2+ 33. d5+ Bxd5+ 34. Nxd5 Kxd5 35. Rd1+ Rd2 36. Rxd2+ Bxd2 37. Bxb8 Bxc3 $11) 31... Bb5 {[%emt 0:00:54]} 32. c4 $1 {[%emt 0:00:00] The board is on fire.} Ba4 {[%emt 0:01:02] [#]} (32... Ba6) 33. Ne5+ {[%emt 0:02:46]} Ke8 $2 {[%emt 0:00:29]} (33... Kg7 {keeps fighting.} 34. Nd3 (34. Bxb8 $2 {gets mated.} Rxh2+ 35. Kg1 Rbg2#) 34... Rxb1 35. Rxb1 Rd2) 34. Nd3 {[%emt 0:00:33] Weighted Error Value: White=0.08 (flawless) /Black=0.33} 1-0

[Event "FRA-ch Teams Top 16-Bas 2022"]
[Site "Chartres"]
[Date "2022.06.19"]
[Round "11.9"]
[White "Crut, Aurelien"]
[Black "Dourerassou, Jonathan"]
[Result "1/2-1/2"]
[ECO "B51"]
[WhiteElo "2355"]
[BlackElo "2446"]
[Annotator "TA"]
[PlyCount "105"]
[EventDate "2022.06.16"]
[EventType "team-tourn"]
[EventCountry "FRA"]
[SourceTitle "playchess.com"]
[Source "ChessBase"]
[SourceQuality "1"]
[TimeControl "40/5400+30:1800+30"]

{[%evp 15,105,0,0,0,7,14,0,9,16,-27,0,0,0,0,0,-21,13,11,6,6,73,84,83,71,66,81,81,76,76,0,0,11,11,0,27,24,51,0,0,0,65,41,51,47,45,17,33,6,33,40,47,53,54,29,41,49,158,0,14,0,0,0,0,0,0,-6,-12,-10,-6,-28,0,0,0,0,0,0,39,0,0,0,0,0,0,0,0,0,0,0,0,0,0,0]} 1. e4 {[%emt 0:00:03]} c5 {[%emt 0:00:06]} 2. Nf3 {[%emt 0:00:07]} d6 {[%emt 0:00:06]} 3. Bb5+ {[%emt 0:00:12]} Nd7 {[%emt 0:00:08]} 4. c3 {[%emt 0:00:18]} Ngf6 {[%emt 0:00:08]} 5. Qe2 {[%emt 0:00:11]} a6 {[%emt 0:00:30]} 6. Ba4 {[%emt 0:00:23]} b5 {[%emt 0:00:07]} 7. Bc2 {[%emt 0:00:06]} Bb7 {[%emt 0:00:05]} 8. O-O {[%emt 0:01:16]} e6 {[%emt 0:00:26]} 9. d4 {[%emt 0:00:54] B51: Sicilian: Moscow Variation (3 Bb5+) without 3...Bd7.} Be7 {[%emt 0:00:16]} 10. Re1 {[%emt 0:04:09]} O-O {[%emt 0:06:06] 10...Qc7 is the hot move.} 11. Nbd2 {[%emt 0:01:51]} Qc7 {[%emt 0:01:02]} 12. Nf1 {[%emt 0:03:16]} Rfc8 {[%emt 0:00:19]} 13. Bd3 {[%emt 0:02:05]} e5 {[%emt 0:00:31]} 14. Ng3 {[%emt 0:07:11] [#]} Bf8 $146 {[%emt 0:03:11]} ({Predecessor:} 14... g6 15. Bg5 Bf8 16. Rad1 Bg7 17. d5 c4 18. Bc2 a5 19. h4 h5 20. Nh2 Re8 {0-1 (70) Kobalia,M (2614)-Giri,A (2764) Chess.com INT 2020}) 15. Bd2 {[%emt 0:08:32]} Re8 {[%emt 0:12:47]} 16. d5 {[%emt 0:09:45]} c4 {[%emt 0:01:57]} 17. Bc2 {[%emt 0:00:16]} a5 {[%emt 0:02:08]} (17... Reb8 $11 {remains equal.}) 18. a4 $16 {[%emt 0:15:32]} Ba6 {[%emt 0:00:48][%cal Ob5b4]} 19. axb5 {[%emt 0:00:44]} Bxb5 {[%emt 0:00:06]} 20. Ba4 {[%emt 0:02:19]} Qb7 {[%emt 0:04:44]} 21. Bxb5 {[%emt 0:05:54]} Qxb5 {[%emt 0:01:03]} 22. b4 {[%emt 0:01:48]} (22. Bg5 $16) 22... axb4 $11 {[%emt 0:00:48]} 23. cxb4 {[%emt 0:00:21]} Nb6 {[%emt 0:00:54]} 24. Rec1 {[%emt 0:06:46]} Rec8 {[%emt 0:06:29]} 25. Ne1 {[%emt 0:10:25]} Na4 {[%emt 0:06:46]} 26. Rc2 {[%emt 0:07:38]} (26. Nc2 $14) 26... Nb6 {[%emt 0:05:40]} 27. Rca2 {[%emt 0:01:42]} Ra4 {[%emt 0:15:44]} (27... Rxa2 $11 28. Rxa2 Ra8 29. Rxa8 Nxa8) 28. Nc2 {[%emt 0:02:53]} Rca8 {[%emt 0:04:39]} 29. Rxa4 {[%emt 0:00:04]} Rxa4 {[%emt 0:00:17]} 30. Qe1 {[%emt 0:03:03]} g6 {[%emt 0:01:29][%cal Oc4c3]} 31. f3 {[%emt 0:00:44]} Nfd7 {[%emt 0:04:07][%cal Of7f5]} (31... c3 $5 32. Bxc3 Rxa1 33. Bxa1 (33. Qxa1 Qd3 $11) 33... Qd3 $14) 32. Ne2 {[%emt 0:01:07] [#] Nc3 is the strong threat.} Rxa1 {[%emt 0:05:46]} 33. Qxa1 {[%emt 0:00:41] aiming for Nc3.} Na4 {[%emt 0:00:22]} 34. Nc3 {[%emt 0:01:21]} Nxc3 {[%emt 0:00:05]} 35. Qxc3 {[%emt 0:00:08]} Nb6 {[%emt 0:02:39] [#]} (35... f5 $1 $14) 36. Be3 {[%emt 0:02:16]} (36. Na3 $1 $16 {[%cal Ra3b5]} Qa4 37. Kf2) 36... Na4 {[%emt 0:00:19]} 37. Qa3 {[%emt 0:01:00]} f5 {[%emt 0:01:04]} 38. Kf2 {[%emt 0:00:31]} Be7 {[%emt 0:00:33]} 39. g3 {[%emt 0:00:32] Inhibits f4.} Bd8 {[%emt 0:00:24]} 40. Ne1 {[%emt 0:00:58]} Kf7 {[%emt 0:03:30]} 41. Nc2 {[%emt 0:03:49]} c3 {[%emt 0:04:50]} 42. Qa1 {[%emt 0:11:38]} f4 {[%emt 0:15:19]} (42... Nb2 $5 {[%cal Rb5d3]} 43. Qa7+ Ke8 $17) 43. gxf4 {[%emt 0:01:21]} Bh4+ {[%emt 0:00:04]} 44. Kg1 {[%emt 0:00:19] Hoping for fxe5.} exf4 {[%emt 0:00:06]} 45. Bd4 {[%emt 0:03:04]} Nb2 {[%emt 0:09:47]} 46. Qf1 {[%emt 0:04:02]} (46. Qc1 $5 {[%cal Rc1f4]} Nd3 47. Qf1 $16) 46... Qa4 {[%emt 0:04:32] The position is equal.} 47. Qh3 {[%emt 0:02:15]} Qxc2 {[%emt 0:01:11]} 48. Qe6+ {[%emt 0:00:18]} Kf8 {[%emt 0:00:04]} 49. Qc8+ {[%emt 0:00:20]} Kf7 {[%emt 0:00:34]} 50. Qe6+ {[%emt 0:00:04]} Kf8 {[%emt 0:00:03]} 51. Qc8+ {[%emt 0:00:05]} Ke7 {[%emt 0:00:28]} 52. Qe6+ {[%emt 0:00:29]} Kf8 {[%emt 0:00:05] ( -> ...Qd1+)} 53. Qc8+ {[%emt 0:00:06] Weighted Error Value: White=0.19 (very precise) /Black=0.14 (very precise)} 1/2-1/2